bitfinex/quotes_SOLUSD_20250424
["timestamp","ask_amount","ask_price","bid_price","bid_amount"]
[1745505094526,0.03,149.51,149.49,6.68927555]
[1745505094729,0.03,149.51,149.46,18.64964886]
[1745505095023,0.03,149.51,149.5,18.83975101]
[1745505096728,0.03,149.51,149.5,25.52871422]
[1745505099909,0.03,149.51,149.5,44.17836308]
[1745505100325,0.03,149.51,149.5,6.68896321]
[1745505100528,0.03,149.51,149.5,25.52871422]
[1745505101646,18.86975101,149.51,149.47,18.83975101]
[1745505101928,0.03,149.51,149.49,18.83975101]
[1745505102122,15.27,149.51,149.49,18.83975101]
[1745505102433,34.10975101,149.51,149.46,25.53050438]
[1745505102944,34.10975101,149.51,149.45,18.83975101]
[1745505102945,18.83975101,149.49,149.45,18.83975101]
[1745505103256,41.27,149.51,149.47,18.83975101]
[1745505103398,15.27,149.51,149.48,18.83975101]
[1745505104138,34.10975101,149.51,149.47,18.83975101]
[1745505104829,15.27,149.51,149.48,6.68985817]
[1745505105024,15.27,149.51,149.48,25.52960918]
[1745505105412,18.83975101,149.5,149.46,6.69040782]
[1745505105610,18.83975101,149.48,149.46,6.69040782]
[1745505105927,41.27,149.51,149.47,18.83975101]
[1745505106104,15.27,149.51,149.48,18.83975101]
[1745505106307,15.22,149.5,149.47,18.83975101]
[1745505106626,18.83975101,149.49,149.44,25.53139983]
[1745505106821,18.86975101,149.51,149.47,6.69030574]
[1745505107337,15.22,149.5,149.47,6.69030574]
[1745505107636,18.86975101,149.51,149.47,6.69030574]
[1745505107824,15.22,149.49,149.47,6.69030574]
[1745505108417,15.22,149.49,149.47,25.53005675]
[1745505108928,15.22,149.49,149.47,6.69030574]
[1745505109243,15.22,149.5,149.47,25.53005675]
[1745505109738,15.22,149.5,149.47,6.69030574]
[1745505110148,15.22,149.49,149.47,6.69030574]
[1745505111344,15.22,149.49,149.48,18.83975101]
[1745505111545,0.03,149.51,149.48,18.83975101]
[1745505112721,18.83975101,149.43,149.38,18.83975101]
[1745505112942,18.83975101,149.43,149.39,6.69388847]
[1745505113853,44.83975101,149.46,149.41,18.83975101]
[1745505114031,15.22,149.46,149.42,18.83975101]
[1745505114330,34.05975101,149.46,149.42,18.83975101]
[1745505114735,34.05975101,149.46,149.39,42.07825852]
[1745505115029,34.05975101,149.46,149.41,18.83975101]
[1745505115331,18.83975101,149.42,149.39,6.69371022]
[1745505115643,30.10650409,149.42,149.39,6.69371022]
[1745505116428,26.0,149.45,149.38,36.80069219]
[1745505116850,30.10650409,149.43,149.38,36.80069219]
[1745505117320,30.10650409,149.42,149.38,6.6941881]
[1745505117519,30.10650409,149.39,149.36,0.063]
[1745505117956,30.10650409,149.37,149.36,0.063]
[1745505118450,30.10650409,149.38,149.36,0.063]
[1745505119638,30.10650409,149.37,149.36,0.063]
[1745505121825,30.24866566,149.37,149.36,0.063]
[1745505122054,62.14799928,149.37,149.36,0.063]
[1745505122257,105.00481861,149.34,149.33,0.063]
[1745505122567,18.79181043,149.33,149.31,0.063]
[1745505122744,60.35516975,149.32,149.31,0.063]
[1745505123063,26.0,149.29,149.27,0.063]
[1745505123364,56.10650409,149.29,149.27,0.063]
[1745505123552,2.5988,149.36,149.27,0.063]
[1745505123553,26.14216157,149.35,149.28,30.10650409]
[1745505123864,56.10650409,149.35,149.31,30.10650409]
[1745505124161,45.32650409,149.36,149.31,30.10650409]
[1745505124365,30.10650409,149.35,149.31,30.10650409]
[1745505124553,56.10650409,149.35,149.31,30.10650409]
[1745505124865,30.10650409,149.34,149.29,30.10650409]
[1745505125170,30.10650409,149.34,149.3,30.16950409]
[1745505125358,56.10650409,149.35,149.3,30.16950409]
[1745505125556,56.10650409,149.35,149.31,6.69747505]
[1745505125777,26.0,149.35,149.31,36.80397914]
[1745505126054,30.10650409,149.33,149.3,0.063]
[1745505126257,30.10650409,149.31,149.3,0.063]
[1745505127263,79.00481861,149.31,149.3,0.063]
[1745505127681,85.70229366,149.31,149.3,0.063]
[1745505128677,56.24866566,149.28,149.27,0.063]
[1745505128884,71.48866566,149.28,149.27,0.063]
[1745505129881,56.24866566,149.28,149.27,0.063]
[1745505130185,15.24,149.28,149.27,0.063]
[1745505130490,71.34650409,149.28,149.27,0.063]
[1745505130666,71.48866566,149.28,149.27,0.063]
[1745505131676,96.83713552,149.28,149.27,0.063]
[1745505131982,26.0,149.25,149.24,0.063]
[1745505132166,56.10650409,149.25,149.24,0.063]
[1745505132752,26.0,149.25,149.24,0.063]
[1745505132952,30.10650409,149.26,149.24,0.063]
[1745505133796,30.10650409,149.25,149.24,0.063]
[1745505134273,30.10650409,149.27,149.24,0.063]
[1745505134457,41.24,149.28,149.24,0.063]
[1745505134458,71.34650409,149.28,149.24,0.063]
[1745505134779,30.10650409,149.25,149.24,0.063]
[1745505135370,30.10650409,149.26,149.24,0.063]
[1745505136689,41.24,149.28,149.24,30.16950409]
[1745505136987,15.22,149.29,149.27,30.10650409]
[1745505137194,15.22,149.29,149.28,30.10650409]
[1745505137363,15.22,149.29,149.27,30.10650409]
[1745505137779,15.22,149.29,149.28,6.698821]
[1745505137995,15.22,149.29,149.27,6.69915683]
[1745505139379,30.10650409,149.28,149.24,6.76353755]
[1745505139579,15.22,149.29,149.24,6.76353755]
[1745505139580,30.10650409,149.26,149.24,6.76353755]
[1745505140973,56.10650409,149.28,149.24,30.16950409]
[1745505141173,56.10650409,149.28,149.24,0.063]
[1745505141387,26.0,149.28,149.24,30.16950409]
[1745505141583,15.22,149.29,149.27,30.10650409]
[1745505141891,15.22,149.29,149.28,36.80532509]
[1745505142373,26.0,149.32,149.28,36.80532509]
[1745505142778,45.32650409,149.34,149.3,30.10650409]
[1745505142977,15.22,149.34,149.3,30.10650409]
[1745505143391,30.10650409,149.31,149.28,6.698821]
[1745505143685,30.10650409,149.29,149.24,0.063]
[1745505143993,30.10650409,149.28,149.24,0.063]
[1745505144361,30.10650409,149.25,149.24,0.063]
[1745505144974,30.10650409,149.26,149.24,0.063]
[1745505146122,30.10650409,149.25,149.24,0.063]
[1745505146812,26.0,149.27,149.24,0.063]
[1745505146968,30.10650409,149.25,149.24,0.063]
[1745505147589,26.0,149.27,149.24,0.063]
[1745505147883,30.10650409,149.25,149.24,0.063]
[1745505148084,26.0,149.27,149.24,0.063]
[1745505148583,30.10650409,149.25,149.24,0.063]
[1745505149028,7.6632,149.38,149.24,0.063]
[1745505149312,30.10650409,149.4,149.35,30.10650409]
[1745505149525,26.0,149.39,149.35,30.10650409]
[1745505149705,56.10650409,149.39,149.34,30.10650409]
[1745505150022,56.10650409,149.39,149.34,36.80262613]
[1745505150316,30.10650409,149.38,149.33,36.80297763]
[1745505152413,30.10650409,149.37,149.32,30.10650409]
[1745505153204,30.10650409,149.34,149.27,6.69926977]
[1745505153501,30.10650409,149.34,149.26,6.69959992]
[1745505153502,30.10650409,149.28,149.26,6.69959992]
[1745505153999,15.22,149.31,149.27,30.10650409]
[1745505154193,45.32650409,149.31,149.27,30.10650409]
[1745505154521,30.10650409,149.3,149.26,36.80610401]
[1745505154885,30.10650409,149.28,149.25,1.22517348]
[1745505155116,30.10650409,149.27,149.24,6.76329603]
[1745505155289,30.10650409,149.28,149.24,6.76329603]
[1745505155492,15.22,149.31,149.25,30.10650409]
[1745505155692,15.22,149.31,149.27,30.10650409]
[1745505155693,41.22,149.31,149.27,30.10650409]
[1745505156321,71.32650409,149.31,149.27,36.80575628]
[1745505156490,41.22,149.31,149.27,36.80575628]
[1745505157315,71.32650409,149.31,149.27,36.80575628]
[1745505157621,71.32650409,149.31,149.27,6.69925219]
[1745505157819,71.32650409,149.31,149.26,30.10650409]
[1745505158021,30.10650409,149.3,149.26,30.10650409]
[1745505158328,30.10650409,149.28,149.24,0.063]
[1745505158822,30.10650409,149.28,149.24,30.16950409]
[1745505159127,30.10650409,149.26,149.24,0.063]
[1745505159513,30.10650409,149.27,149.24,0.063]
[1745505159734,56.10650409,149.28,149.24,0.063]
[1745505159935,30.10650409,149.27,149.24,0.063]
[1745505160237,30.10650409,149.25,149.24,0.063]
[1745505160646,56.10650409,149.25,149.24,0.063]
[1745505161011,71.32650409,149.25,149.24,0.063]
[1745505163366,64.11831452,149.25,149.24,0.063]
[1745505163638,94.22481861,149.25,149.24,0.063]
[1745505163835,41.22,149.25,149.24,0.063]
[1745505164341,71.32650409,149.25,149.24,0.063]
[1745505164719,71.46866566,149.25,149.24,0.063]
[1745505165334,45.46866566,149.25,149.24,0.063]
[1745505165542,94.22481861,149.25,149.24,0.063]
[1745505165855,64.11831452,149.25,149.24,0.063]
[1745505166022,45.46866566,149.25,149.24,0.063]
[1745505168527,64.11831452,149.25,149.24,0.063]
[1745505168837,94.22481861,149.25,149.24,0.063]
[1745505169744,64.11831452,149.25,149.24,0.063]
[1745505171742,100.92498611,149.25,149.24,0.063]
[1745505172065,21.36811043,149.23,149.22,0.063]
[1745505172267,18.79181043,149.22,149.21,0.063]
[1745505172482,44.79181043,149.19,149.18,0.063]
[1745505172638,90.11831452,149.19,149.18,0.063]
[1745505172833,71.46866566,149.19,149.18,0.063]
[1745505173137,71.32650409,149.19,149.18,0.063]
[1745505176964,26.0,149.19,149.18,0.063]
[1745505178368,15.22,149.2,149.18,30.16950409]
[1745505178677,15.22,149.2,149.19,30.10650409]
[1745505178969,15.22,149.2,149.19,36.80936621]
[1745505180767,1.5856,149.3,149.19,53.56652151]
[1745505180968,26.01255184,149.31,149.27,30.10650409]
[1745505181150,26.01255184,149.31,149.28,30.10650409]
[1745505181151,15.22,149.31,149.28,30.10650409]
[1745505181349,15.22,149.31,149.3,30.10650409]
[1745505181963,0.03,149.35,149.3,30.10650409]
[1745505182144,0.03,149.35,149.34,30.10650409]
[1745505182853,0.03,149.35,149.33,30.10650409]
[1745505183056,0.03,149.35,149.34,30.10650409]
[1745505184368,0.03,149.35,149.34,36.65470409]
[1745505184751,0.03,149.35,149.33,30.10650409]
[1745505184951,0.03,149.35,149.34,36.80263372]
[1745505186849,0.03,149.35,149.34,30.10650409]
[1745505187044,0.03,149.35,149.32,6.69702652]
[1745505187341,30.10650409,149.34,149.3,43.40506614]
[1745505187547,30.10650409,149.34,149.3,36.80436614]
[1745505187761,30.13650409,149.35,149.3,36.80436614]
[1745505188259,30.10650409,149.34,149.3,36.80436614]
[1745505188459,0.03,149.35,149.31,30.10650409]
[1745505188775,0.03,149.35,149.3,30.10650409]
[1745505188948,30.10650409,149.34,149.3,30.10650409]
[1745505189150,30.13650409,149.35,149.3,30.10650409]
[1745505189950,30.10650409,149.34,149.3,30.10650409]
[1745505190283,30.13650409,149.35,149.3,30.10650409]
[1745505190574,30.13650409,149.35,149.27,14.90538979]
[1745505190575,26.0,149.33,149.27,14.90538979]
[1745505190752,26.0,149.33,149.3,30.10650409]
[1745505190950,56.10650409,149.33,149.29,30.10650409]
[1745505191663,56.10650409,149.33,149.28,30.10650409]
[1745505192046,30.10650409,149.31,149.27,38.31270409]
[1745505192261,30.10650409,149.3,149.25,30.10650409]
[1745505192443,30.10650409,149.26,149.23,7.6001]
[1745505192646,30.10650409,149.27,149.23,7.6001]
[1745505193057,30.10650409,149.27,149.22,36.80790103]
[1745505193254,30.10650409,149.25,149.2,6.70241286]
[1745505193471,30.10650409,149.24,149.2,36.80891695]
[1745505193773,56.10650409,149.24,149.18,0.063]
[1745505193976,30.10650409,149.21,149.19,30.0]
[1745505194183,30.10650409,149.2,149.18,0.063]
[1745505194385,30.10650409,149.19,149.18,0.063]
[1745505196854,6.70161312,149.22,149.18,0.063]
[1745505196855,26.0,149.2,149.18,0.063]
[1745505197095,30.10650409,149.19,149.18,0.063]
[1745505198167,56.10650409,149.2,149.18,0.063]
[1745505198480,26.0,149.22,149.19,30.10650409]
[1745505198781,15.22,149.23,149.19,30.10650409]
[1745505198972,71.32650409,149.23,149.18,30.16950409]
[1745505199172,30.10650409,149.19,149.18,0.063]
[1745505202801,15.22,149.23,149.18,0.063]
[1745505203092,45.32650409,149.23,149.19,30.10650409]
[1745505203284,45.32650409,149.23,149.18,0.063]
[1745505203586,15.2,149.26,149.22,30.10650409]
[1745505204071,30.10650409,149.25,149.18,6.76631143]
[1745505204385,30.10650409,149.25,149.21,30.10650409]
[1745505205093,56.10650409,149.23,149.19,30.10650409]
[1745505205277,56.10650409,149.23,149.18,36.87281552]
[1745505205794,56.10650409,149.23,149.19,30.10650409]
[1745505205973,26.0,149.24,149.2,30.10650409]
[1745505206175,26.0,149.23,149.21,30.10650409]
[1745505206489,45.30650409,149.26,149.22,30.10650409]
[1745505206490,15.2,149.26,149.22,30.10650409]
[1745505206701,15.2,149.26,149.23,30.10650409]
[1745505207584,208.96,149.3,149.25,30.10650409]
[1745505207886,26.0,149.29,149.26,30.10650409]
[1745505208293,56.10650409,149.29,149.25,36.80635998]
[1745505208604,56.10650409,149.27,149.21,6.70196367]
[1745505208886,26.0,149.27,149.24,30.10650409]
[1745505209791,26.0,149.27,149.25,30.10650409]
[1745505210085,26.0,149.27,149.26,36.8062227]
[1745505210391,26.0,149.29,149.26,36.8062227]
[1745505210578,30.10650409,149.3,149.26,36.8062227]
[1745505210783,26.0,149.29,149.26,36.8062227]
[1745505210996,56.10650409,149.29,149.24,30.10650409]
[1745505211289,30.10650409,149.27,149.23,30.10650409]
[1745505212371,26.0,149.28,149.25,30.10650409]
[1745505213202,26.0,149.28,149.24,30.10650409]
[1745505213402,26.0,149.28,149.25,30.10650409]
[1745505214204,26.0,149.28,149.24,30.10650409]
[1745505214405,30.10650409,149.26,149.22,6.70133755]
[1745505214707,26.0,149.28,149.22,36.80784164]
[1745505214708,30.10650409,149.27,149.22,36.80784164]
[1745505215704,26.0,149.28,149.21,6.70185646]
[1745505215705,30.10650409,149.24,149.21,6.70185646]
[1745505215882,30.10650409,149.23,149.19,30.10650409]
[1745505216391,30.10650409,149.23,149.2,6.70222453]
[1745505217097,30.10650409,149.24,149.2,6.70222453]
[1745505217309,30.10650409,149.24,149.2,36.80872862]
[1745505218181,30.10650409,149.24,149.2,6.70222453]
[1745505218386,30.10650409,149.21,149.18,6.76594061]
[1745505218602,30.10650409,149.19,149.18,0.063]
[1745505219092,56.10650409,149.19,149.18,0.063]
[1745505219289,45.44866566,149.19,149.18,0.063]
[1745505221904,94.20481861,149.19,149.18,0.063]
[1745505222787,0.14216157,149.17,149.16,0.063]
[1745505222984,18.64964886,149.16,149.15,0.03]
[1745505223297,0.14216157,149.16,149.15,0.03]
[1745505223508,56.10650409,149.16,149.15,0.03]
[1745505224727,26.0,149.16,149.15,0.03]
[1745505226817,56.10650409,149.16,149.15,0.03]
[1745505229691,30.10650409,149.16,149.15,0.03]
[1745505230012,56.10650409,149.18,149.15,0.03]
[1745505230216,15.2,149.19,149.15,0.03]
[1745505230217,15.2,149.19,149.17,30.10650409]
[1745505230529,45.30650409,149.23,149.18,30.10650409]
[1745505230695,15.2,149.23,149.2,30.10650409]
[1745505231090,15.2,149.23,149.2,36.80854644]
[1745505231292,15.2,149.23,149.22,30.10650409]
[1745505231528,239.20950409,149.27,149.22,30.10650409]
[1745505231696,265.20950409,149.27,149.22,30.10650409]
[1745505232016,239.20950409,149.27,149.22,30.10650409]
[1745505232412,30.10650409,149.26,149.21,30.10650409]
[1745505232824,30.10650409,149.26,149.22,30.10650409]
[1745505233008,56.10650409,149.23,149.18,6.70331143]
[1745505233315,26.0,149.23,149.19,30.10650409]
[1745505233519,26.0,149.23,149.2,30.10650409]
[1745505233702,56.10650409,149.23,149.19,30.10650409]
[1745505234020,26.0,149.23,149.19,30.10650409]
[1745505234529,56.10650409,149.23,149.19,30.10650409]
[1745505234703,26.0,149.23,149.19,30.10650409]
[1745505235105,0.063,149.27,149.22,36.80781866]
[1745505235418,26.063,149.27,149.23,30.10650409]
[1745505236017,56.16950409,149.27,149.23,30.10650409]
[1745505236323,0.063,149.27,149.26,30.10650409]
[1745505237325,0.063,149.27,149.26,36.8062227]
[1745505237822,0.063,149.27,149.26,30.10650409]
[1745505238125,0.063,149.27,149.25,31.61690409]
[1745505238441,30.10650409,149.26,149.21,8.2930412]
[1745505238600,30.16950409,149.27,149.22,30.10650409]
[1745505238800,0.063,149.27,149.24,30.10650409]
[1745505239030,0.063,149.27,149.21,8.2930412]
[1745505239207,30.16950409,149.27,149.23,30.10650409]
[1745505239406,30.16950409,149.27,149.22,30.10650409]
[1745505240019,30.10650409,149.24,149.19,13.23572571]
[1745505240326,30.10650409,149.24,149.19,36.63940409]
[1745505240508,30.10650409,149.22,149.17,31.61950409]
[1745505241026,30.10650409,149.2,149.17,1.513]
[1745505241207,56.10650409,149.24,149.16,30.10650409]
[1745505241208,30.10650409,149.21,149.16,30.10650409]
[1745505241614,30.10650409,149.21,149.16,36.81058739]
[1745505242127,30.10650409,149.23,149.19,30.10650409]
[1745505242332,30.10650409,149.24,149.19,30.10650409]
[1745505242531,26.0,149.25,149.19,30.10650409]
[1745505242708,30.10650409,149.23,149.19,30.10650409]
[1745505243028,30.10650409,149.24,149.2,30.10650409]
[1745505243208,56.10650409,149.25,149.2,30.10650409]
[1745505243529,56.10650409,149.25,149.21,30.10650409]
[1745505243735,0.063,149.27,149.23,30.10650409]
[1745505243736,30.16950409,149.27,149.23,30.10650409]
[1745505243917,0.063,149.27,149.24,30.10650409]
[1745505244635,30.16950409,149.27,149.23,30.10650409]
[1745505244845,0.063,149.27,149.24,30.10650409]
[1745505245052,0.063,149.27,149.26,30.10650409]
[1745505245548,0.063,149.27,149.26,48.75615295]
[1745505245709,0.063,149.27,149.26,55.45587156]
[1745505245906,1e-08,149.27,149.26,58.16250543]
[1745505246347,1e-08,149.27,149.26,56.82312453]
[1745505246555,1e-08,149.27,149.26,56.68096296]
[1745505249028,1e-08,149.27,149.26,38.0313141]
[1745505249233,1e-08,149.27,149.26,56.68096296]
[1745505249940,1e-08,149.27,149.26,38.0313141]
[1745505250431,1e-08,149.27,149.26,1.2250914]
[1745505250618,1e-08,149.27,149.25,36.80658906]
[1745505252041,30.1065041,149.27,149.23,36.80739451]
[1745505252245,1e-08,149.27,149.23,36.80739451]
[1745505253156,1e-08,149.27,149.18,15.32216157]
[1745505253157,30.10650409,149.24,149.17,1.5101]
[1745505253488,30.10650409,149.23,149.18,36.80981552]
[1745505253635,30.10650409,149.22,149.18,6.70331143]
[1745505253834,26.0,149.24,149.2,30.10650409]
[1745505254034,30.10650409,149.26,149.22,30.10650409]
[1745505254359,41.18000001,149.27,149.23,30.10650409]
[1745505254854,1e-08,149.27,149.26,30.10650409]
[1745505255655,1e-08,149.27,149.26,48.75615295]
[1745505256161,1e-08,149.27,149.26,6.69971861]
[1745505256320,1e-08,149.27,149.26,36.8062227]
[1745505257975,1e-08,149.27,149.26,55.45587156]
[1745505259848,1e-08,149.27,149.26,56.82312453]
[1745505261872,0.063,149.33,149.31,18.64964886]
[1745505262074,0.063,149.33,149.32,36.80353061]
[1745505262243,0.063,149.33,149.32,55.45317947]
[1745505262444,0.063,149.33,149.32,6.69702652]
[1745505262647,0.063,149.33,149.31,7.92212528]
[1745505262845,30.16950409,149.33,149.31,7.92212528]
[1745505263064,30.16950409,149.33,149.31,6.69744413]
[1745505263550,0.063,149.33,149.31,6.69744413]
[1745505263943,30.16950409,149.33,149.3,6.69775106]
[1745505264146,30.16950409,149.33,149.29,36.80479432]
[1745505264558,0.063,149.33,149.29,36.80479432]
[1745505265378,0.063,149.33,149.3,30.10650409]
[1745505265556,0.063,149.33,149.31,30.10650409]
[1745505266374,0.063,149.33,149.3,6.69774007]
[1745505266670,0.063,149.33,149.3,36.80424416]
[1745505266875,30.16950409,149.33,149.3,6.69774007]
[1745505267069,21.34113277,149.33,149.3,6.69774007]
[1745505267753,21.34113277,149.33,149.29,36.80483232]
[1745505268076,26.03,149.35,149.32,30.10650409]
[1745505268256,26.03,149.35,149.31,30.10650409]
[1745505268456,26.03,149.35,149.32,6.69702652]
[1745505268866,56.13650409,149.35,149.31,36.80386412]
[1745505269577,56.13650409,149.35,149.31,6.69736003]
[1745505269787,30.10650409,149.34,149.31,6.69736003]
[1745505270464,56.13650409,149.35,149.31,36.80386412]
[1745505270963,56.13650409,149.35,149.31,6.69736003]
[1745505271270,44.86367173,149.35,149.31,6.69736003]
[1745505272049,18.83367173,149.34,149.29,25.53191222]
[1745505272461,18.83367173,149.34,149.3,18.83367173]
[1745505272760,44.86367173,149.35,149.31,25.53114678]
[1745505273163,0.03,149.35,149.31,6.69747505]
[1745505273367,0.03,149.35,149.34,18.83367173]
[1745505273580,0.03,149.35,149.34,37.48332059]
[1745505275075,0.03,149.35,149.34,25.52980136]
[1745505275283,18.86367173,149.35,149.28,26.0]
[1745505275488,41.16,149.34,149.26,6.69957847]
[1745505275688,18.83367173,149.28,149.22,7.8018]
[1745505275873,18.83367173,149.28,149.23,18.83367173]
[1745505276067,26.0,149.33,149.25,18.83367173]
[1745505276394,18.83367173,149.3,149.25,18.83367173]
[1745505276576,18.83367173,149.28,149.23,6.70106546]
[1745505276778,18.83367173,149.28,149.23,25.53473719]
[1745505276976,18.83367173,149.27,149.23,6.70106546]
[1745505277381,30.16722787,149.27,149.23,6.70106546]
[1745505278082,26.0,149.3,149.22,30.16722787]
[1745505278083,30.16722787,149.26,149.22,30.16722787]
[1745505278262,30.16722787,149.26,149.21,36.86912983]
[1745505280195,30.16722787,149.23,149.19,36.86992259]
[1745505280489,30.16722787,149.23,149.18,36.87051603]
[1745505280699,30.16722787,149.21,149.17,30.16722787]
[1745505280871,30.16722787,149.21,149.17,6.70360647]
[1745505281072,30.16722787,149.22,149.17,6.70360647]
[1745505281274,30.16722787,149.19,149.16,6.70407473]
[1745505281673,30.16722787,149.18,149.15,0.03]
[1745505282067,30.16722787,149.18,149.15,6.7346259]
[1745505282574,30.16722787,149.19,149.15,6.7346259]
[1745505282972,30.16722787,149.19,149.15,36.90185377]
[1745505283460,30.16722787,149.2,149.16,30.16722787]
[1745505283669,45.32722787,149.22,149.18,30.16722787]
[1745505283863,21.2127,149.26,149.2,30.16722787]
[1745505284192,45.32722787,149.26,149.21,30.16722787]
[1745505284573,15.16,149.26,149.21,30.16722787]
[1745505284775,21.7388,149.3,149.25,30.16722787]
[1745505284979,51.90602787,149.3,149.25,30.16722787]
[1745505285175,26.0,149.29,149.25,30.16722787]
[1745505285411,56.16722787,149.29,149.25,30.16722787]
[1745505285699,30.16722787,149.28,149.22,6.70151454]
[1745505286178,30.16722787,149.28,149.24,30.16722787]
[1745505286574,30.16722787,149.28,149.23,30.16722787]
[1745505286975,30.16722787,149.27,149.23,30.16722787]
[1745505287171,30.16722787,149.26,149.22,6.70151454]
[1745505287387,56.16722787,149.27,149.22,36.86874241]
[1745505287581,30.16722787,149.28,149.25,6.7001675]
[1745505287789,56.16722787,149.29,149.24,6.70046072]
[1745505287986,30.16722787,149.28,149.24,6.70046072]
[1745505288203,30.16722787,149.26,149.22,30.16722787]
[1745505288407,30.16722787,149.27,149.23,30.16722787]
[1745505288598,30.16722787,149.28,149.24,30.16722787]
[1745505288806,30.16722787,149.27,149.23,30.16722787]
[1745505289401,26.0,149.29,149.21,18.64964886]
[1745505289708,30.16722787,149.28,149.24,30.16722787]
[1745505289882,26.0,149.29,149.26,30.16722787]
[1745505290409,56.16722787,149.29,149.25,36.86739537]
[1745505290587,30.16722787,149.27,149.23,36.86785702]
[1745505290788,30.16722787,149.27,149.23,6.70062915]
[1745505291208,30.16722787,149.26,149.22,36.86856908]
[1745505291711,26.0,149.27,149.24,30.16722787]
[1745505291889,26.0,149.27,149.25,6.7001675]
[1745505293086,56.16722787,149.27,149.22,30.16722787]
[1745505293817,56.16722787,149.27,149.22,36.86836594]
[1745505293991,26.0,149.27,149.24,30.16722787]
[1745505294193,56.16722787,149.29,149.24,30.16722787]
[1745505294693,30.16722787,149.28,149.22,23.45492442]
[1745505294891,30.16722787,149.28,149.23,30.16722787]
[1745505295107,30.16722787,149.28,149.18,41.31820079]
[1745505295108,26.0,149.21,149.17,0.063]
[1745505295317,30.16722787,149.18,149.17,0.063]
[1745505295815,30.16722787,149.19,149.17,0.063]
[1745505296406,30.16722787,149.18,149.17,0.063]
[1745505296996,71.32722787,149.2,149.17,0.063]
[1745505298617,45.32722787,149.2,149.17,0.063]
[1745505298815,30.16722787,149.19,149.17,0.063]
[1745505299519,45.32722787,149.2,149.17,0.063]
[1745505301121,30.16722787,149.19,149.17,0.063]
[1745505301310,30.16722787,149.18,149.17,0.063]
[1745505301502,30.16722787,149.19,149.17,0.063]
[1745505302224,15.16,149.2,149.17,0.063]
[1745505302526,30.16722787,149.19,149.17,0.063]
[1745505303216,15.16,149.2,149.17,0.063]
[1745505303422,45.32722787,149.24,149.19,30.16722787]
[1745505303729,6.69803902,149.3,149.22,30.16722787]
[1745505304027,15.16,149.28,149.24,30.16722787]
[1745505304630,45.32722787,149.28,149.23,30.16722787]
[1745505304800,45.32722787,149.28,149.19,6.70286212]
[1745505304801,15.16,149.28,149.2,18.64964886]
[1745505305007,15.16,149.28,149.26,30.16722787]
[1745505305208,45.32722787,149.32,149.27,30.16722787]
[1745505305519,30.16722787,149.31,149.27,30.16722787]
[1745505305825,30.16722787,149.34,149.3,30.16722787]
[1745505306051,0.03,149.35,149.32,30.16722787]
[1745505306401,0.03,149.35,149.31,36.86445441]
[1745505306613,45.24338414,149.36,149.31,36.86445441]
[1745505307125,15.07615627,149.36,149.32,30.16722787]
[1745505307521,45.24338414,149.36,149.31,36.86445441]
[1745505307718,30.16722787,149.34,149.29,36.86521732]
[1745505308028,30.16722787,149.33,149.29,6.69798945]
[1745505308333,30.16722787,149.34,149.29,36.86521732]
[1745505308523,56.16722787,149.35,149.3,30.16722787]
[1745505309030,30.16722787,149.33,149.28,30.16722787]
[1745505309202,30.16722787,149.32,149.27,55.51597393]
[1745505309404,26.0,149.33,149.28,30.16722787]
[1745505309624,56.16722787,149.33,149.28,30.16722787]
[1745505310546,56.16722787,149.33,149.29,30.16722787]
[1745505311048,26.0,149.33,149.31,30.16722787]
[1745505311349,26.0,149.33,149.3,30.16722787]
[1745505311760,26.0,149.33,149.29,30.16722787]
[1745505312548,30.16722787,149.34,149.3,36.86515151]
[1745505312750,56.16722787,149.35,149.3,36.86515151]
[1745505313063,15.07615627,149.36,149.33,30.16722787]
[1745505313426,15.07615627,149.36,149.32,30.16722787]
[1745505313730,30.16722787,149.34,149.3,36.86515151]
[1745505313934,30.16722787,149.35,149.31,30.16722787]
[1745505314136,15.07615627,149.36,149.33,30.16722787]
[1745505314338,0.063,149.38,149.35,30.16722787]
[1745505314554,0.063,149.38,149.37,6.69478476]
[1745505314741,0.063,149.38,149.35,30.16722787]
[1745505315133,30.23022787,149.38,149.32,6.69702652]